bitfinex/quotes_SOLUSD_20250403
["timestamp","ask_amount","ask_price","bid_price","bid_amount"]
[1743656404608,26.0,120.32,120.31,0.563]
[1743656407015,34.3111,120.32,120.31,0.563]
[1743656410114,65.46557387,120.32,120.31,0.063]
[1743656410795,60.84723357,120.32,120.31,0.563]
[1743656411000,72.92557387,120.32,120.31,0.563]
[1743656412623,72.92557387,120.32,120.31,0.063]
[1743656414426,60.84723357,120.32,120.31,0.563]
[1743656414715,60.84723357,120.32,120.31,0.063]
[1743656414716,72.92557387,120.32,120.31,0.063]
[1743656414903,19.07613357,120.31,120.29,0.063]
[1743656415110,12.0783403,120.3,120.29,0.063]
[1743656415523,19.07613357,120.31,120.29,0.063]
[1743656415725,12.0783403,120.3,120.29,0.063]
[1743656416209,20.3908403,120.3,120.29,0.063]
[1743656419024,39.46697387,120.3,120.29,0.063]
[1743656421627,39.46697387,120.3,120.29,0.563]
[1743656421828,39.46697387,120.3,120.29,0.063]
[1743656424229,39.46697387,120.3,120.29,0.563]
[1743656426813,39.46697387,120.3,120.29,0.063]
[1743656427013,39.46697387,120.3,120.29,0.563]
[1743656427634,39.46697387,120.3,120.29,0.063]
[1743656427933,39.46697387,120.3,120.29,0.563]
[1743656428122,27.38863357,120.3,120.29,0.563]
[1743656428322,39.46697387,120.3,120.29,0.563]
[1743656428639,31.15447387,120.3,120.29,0.563]
[1743656429236,5.46750491,120.32,120.3,0.5]
[1743656429442,8.3114,120.32,120.31,0.5]
[1743656429744,39.18155073,120.32,120.31,0.5]
[1743656429928,39.46587387,120.32,120.31,0.5]
[1743656430127,39.18155073,120.32,120.31,0.5]
[1743656430924,39.46587387,120.32,120.31,0.5]
[1743656431315,27.38753357,120.32,120.31,0.5]
[1743656431519,39.46587387,120.32,120.31,0.5]
[1743656433042,20.3890403,120.33,120.32,0.5]
[1743656433235,39.46517387,120.33,120.32,0.5]
[1743656436341,12.0783403,120.33,120.32,0.5]
[1743656436551,80.19750885,120.34,120.33,0.5]
[1743656436729,102.75750885,120.34,120.33,0.5]
[1743656440423,69.46437387,120.34,120.33,0.5]
[1743656441233,39.46437387,120.34,120.33,0.5]
[1743656441743,27.38603357,120.34,120.33,0.5]
[1743656441946,39.46437387,120.34,120.33,0.5]
[1743656444550,39.49437387,120.34,120.33,0.5]
[1743656454049,0.03,120.34,120.33,0.5]
[1743656454760,0.03,120.34,120.33,16.7261]
[1743656455169,0.03,120.35,120.34,0.5]
[1743656455357,0.03,120.35,120.34,6.7659]
[1743656456261,26.03,120.37,120.36,0.5]
[1743656458157,0.03,120.37,120.36,0.5]
[1743656461079,26.03,120.37,120.36,0.5]
[1743656465582,34.3377,120.37,120.36,0.5]
[1743656465943,46.4160403,120.37,120.36,0.5]
[1743656466272,34.3377,120.37,120.36,0.5]
[1743656469774,65.49217387,120.37,120.36,0.5]
[1743656470075,0.14216157,120.36,120.35,0.063]
[1743656470278,12.22050187,120.36,120.35,0.063]
[1743656471074,39.46287387,120.36,120.35,0.063]
[1743656471276,26.14216157,120.32,120.31,0.563]
[1743656471454,57.15447387,120.32,120.31,0.063]
[1743656471648,0.14216157,120.3,120.29,0.063]
[1743656471870,26.0,120.28,120.27,0.063]
[1743656472178,33.44,120.28,120.27,0.063]
[1743656472366,52.51613357,120.28,120.27,0.063]
[1743656472573,64.59447387,120.28,120.27,0.063]
[1743656472750,71.47703328,120.28,120.27,0.063]
[1743656473272,72.90837387,120.28,120.27,0.063]
[1743656474880,72.90837387,120.28,120.27,0.563]
[1743656475168,72.90837387,120.28,120.27,0.063]
[1743656475950,72.90837387,120.28,120.27,0.563]
[1743656478445,90.6154612,120.3,120.27,0.563]
[1743656478446,8.3127,120.3,120.27,0.563]
[1743656478651,30.87015073,120.29,120.28,0.5]
[1743656478850,31.15447387,120.29,120.28,0.5]
[1743656479579,39.46767387,120.29,120.28,0.5]
[1743656480348,31.15447387,120.29,120.28,0.5]
[1743656480753,39.46767387,120.29,120.28,0.5]
[1743656481576,31.15447387,120.29,120.28,0.5]
[1743656481753,12.0783403,120.29,120.28,0.5]
[1743656481952,18.933972,120.3,120.29,0.5]
[1743656482158,31.0123123,120.3,120.29,0.5]
[1743656482457,31.15447387,120.3,120.29,0.5]
[1743656483174,39.46697387,120.3,120.29,0.5]
[1743656483669,31.15447387,120.3,120.29,0.5]
[1743656484174,39.46697387,120.3,120.29,0.5]
[1743656484856,31.15447387,120.3,120.29,0.5]
[1743656486480,39.46697387,120.3,120.29,0.5]
[1743656488279,27.38863357,120.3,120.29,0.5]
[1743656488460,39.46697387,120.3,120.29,0.5]
[1743656489586,39.46697387,120.3,120.28,0.5]
[1743656489761,12.0783403,120.29,120.28,0.5]
[1743656490083,19.5183403,120.29,120.28,0.5]
[1743656490579,27.8315403,120.29,120.28,0.5]
[1743656491173,26.23181043,120.29,120.28,0.5]
[1743656491356,38.59447387,120.29,120.28,0.5]
[1743656491560,31.15447387,120.29,120.28,0.5]
[1743656492882,12.0783403,120.29,120.28,0.5]
[1743656493379,39.46767387,120.29,120.28,0.5]
[1743656496777,19.07613357,120.28,120.27,0.063]
[1743656497083,38.59447387,120.28,120.27,0.563]
[1743656498390,39.18335073,120.29,120.28,0.5]
[1743656498775,39.46767387,120.29,120.28,0.5]
[1743656498976,39.3255123,120.29,120.28,0.5]
[1743656499289,39.46767387,120.29,120.28,0.5]
[1743656499584,27.16761043,120.3,120.29,0.5]
[1743656499780,39.53027387,120.3,120.29,0.5]
[1743656499961,19.07613357,120.29,120.28,0.5]
[1743656500165,31.15447387,120.29,120.28,0.5]
[1743656500687,39.46767387,120.29,120.28,0.5]
[1743656504887,26.0,120.29,120.28,0.5]
[1743656505091,30.87015073,120.29,120.28,0.5]
[1743656505277,38.59447387,120.29,120.28,0.5]
[1743656505978,19.07613357,120.28,120.27,0.563]
[1743656506186,31.15447387,120.28,120.27,0.563]
[1743656507078,39.46837387,120.28,120.27,0.563]
[1743656507479,18.79181043,120.28,120.27,0.563]
[1743656507675,60.54531043,120.29,120.28,0.5]
[1743656507894,72.62365073,120.29,120.28,0.5]
[1743656508197,72.90797387,120.29,120.28,0.5]
[1743656508497,72.90797387,120.29,120.27,0.063]
[1743656508498,19.07613357,120.28,120.27,0.063]
[1743656508879,31.15447387,120.28,120.27,0.063]
[1743656509397,39.46837387,120.28,120.27,0.063]
[1743656511703,39.46837387,120.28,120.27,0.563]
[1743656511895,39.46837387,120.28,120.27,0.063]
[1743656513017,101.17613357,120.27,120.26,0.063]
[1743656513201,113.25447387,120.27,120.26,0.063]
[1743656514210,59.46907387,120.27,120.26,0.063]
[1743656514508,19.07613357,120.26,120.25,0.063]
[1743656514810,31.15447387,120.26,120.25,0.063]
[1743656515789,35.39766261,120.26,120.25,0.063]
[1743656515997,35.39766261,120.26,120.24,0.063]
[1743656515998,83.71102381,120.26,120.24,0.063]
[1743656516200,177.32383507,120.25,120.24,0.063]
[1743656516702,19.07613357,120.24,120.23,0.063]
[1743656516919,79.46783507,120.24,120.23,0.063]
[1743656518523,39.47107387,120.24,120.23,0.063]
[1743656518897,87.78443507,120.24,120.23,0.063]
[1743656519630,117.78443507,120.24,120.23,0.063]
[1743656520105,125.22443507,120.24,120.23,0.063]
[1743656521114,207.32443507,120.24,120.23,0.063]
[1743656523101,159.01107387,120.24,120.23,0.063]
[1743656524028,146.93273357,120.24,120.23,0.063]
[1743656524198,158.72675073,120.24,120.23,0.563]
[1743656524801,151.28675073,120.24,120.23,0.563]
[1743656525091,151.57107387,120.24,120.23,0.563]
[1743656525313,143.25447387,120.24,120.23,0.563]
[1743656525707,112.1,120.24,120.23,0.563]
[1743656525930,97.9165,120.29,120.28,0.5]
[1743656526104,114.14700187,120.29,120.28,0.5]
[1743656526817,133.08097387,120.29,120.28,0.5]
[1743656527027,121.34665073,120.29,120.28,0.5]
[1743656527698,121.63097387,120.29,120.28,0.5]
[1743656529527,12.1413403,120.29,120.28,0.5]
[1743656529696,0.063,120.29,120.28,0.5]
[1743656531401,0.063,120.29,120.28,8.8139]
[1743656531740,0.063,120.3,120.29,8.8132]
[1743656531951,37.64867206,120.35,120.34,0.5]
[1743656532142,67.64867206,120.35,120.34,0.5]
[1743656532341,30.0,120.35,120.34,0.5]
[1743656532563,30.0,120.35,120.34,8.6458]
[1743656532851,0.03,120.37,120.36,0.5]
[1743656533631,0.03,120.39,120.38,0.5]
[1743656533947,0.03,120.39,120.38,7.0185]
[1743656536442,18.88686163,120.39,120.38,7.0185]
[1743656536954,27.19316163,120.39,120.38,7.0185]
[1743656537131,27.19316163,120.39,120.38,0.5]
[1743656538149,0.03,120.39,120.38,0.5]
[1743656543163,0.03,120.39,120.38,10.4281]
[1743656543543,0.03,120.41,120.4,0.5]
[1743656546136,0.03,120.43,120.42,19.433972]
[1743656546341,0.03,120.43,120.42,26.853972]
[1743656547069,0.03,120.43,120.42,27.353972]
[1743656547673,0.03,120.43,120.42,26.853972]
[1743656547971,0.03,120.43,120.42,16.2242]
[1743656548142,0.03,120.43,120.42,35.158172]
[1743656551069,0.03,120.44,120.43,0.14216157]
[1743656551257,0.03,120.46,120.45,0.5]
[1743656557074,18.88686163,120.46,120.45,0.5]
[1743656557378,53.18836163,120.46,120.45,0.5]
[1743656557581,26.03,120.46,120.45,0.5]
[1743656558052,34.3315,120.46,120.45,0.5]
[1743656558444,53.3305232,120.46,120.45,0.5]
[1743656558673,53.18836163,120.46,120.45,0.5]
[1743656559556,72.2644952,120.46,120.45,0.5]
[1743656560075,34.3315,120.46,120.45,0.5]
[1743656560375,53.18836163,120.46,120.45,0.5]
[1743656560546,72.2644952,120.46,120.45,0.5]
[1743656560945,0.03,120.46,120.45,0.5]
[1743656561186,8.3315,120.46,120.45,0.5]
[1743656561364,53.18836163,120.46,120.45,0.5]
[1743656561869,72.2644952,120.46,120.45,0.5]
[1743656562063,72.2644952,120.46,120.44,0.5]
[1743656562268,18.85686163,120.45,120.44,0.5]
[1743656562660,53.18836163,120.46,120.44,0.5]
[1743656563075,53.18836163,120.46,120.45,0.5]
[1743656563685,34.3315,120.46,120.45,0.5]
[1743656565607,0.03,120.46,120.45,2.1604]
[1743656566255,0.03,120.46,120.45,36.006272]
[1743656567881,0.03,120.46,120.45,8.7701]
[1743656569786,0.03,120.46,120.45,17.0723]
[1743656571074,0.03,120.46,120.45,117.906272]
[1743656572087,0.03,120.46,120.45,118.04843357]
[1743656572273,0.03,120.48,120.47,82.37]
[1743656572474,0.03,120.5,120.48,0.14216157]
[1743656572807,0.03,120.5,120.49,26.690672]
[1743656573404,0.03,120.5,120.49,34.990072]
[1743656573688,0.03,120.5,120.49,7.7567]
[1743656574993,0.03,120.5,120.49,16.0561]
[1743656576396,0.03,120.5,120.49,7.7567]
[1743656577102,0.03,120.5,120.49,16.0561]
[1743656577794,0.03,120.5,120.49,7.7567]
[1743656579103,0.03,120.5,120.49,16.0561]
[1743656580105,0.03,120.5,120.49,7.7567]
[1743656580310,0.03,120.5,120.49,6.1245]
[1743656580918,0.03,120.5,120.46,1.6443]
[1743656580919,26.03,120.5,120.46,1.6443]
[1743656581101,26.03,120.5,120.46,28.59534886]
[1743656581304,0.03,120.5,120.47,19.07613357]
[1743656581612,0.03,120.5,120.49,27.233372]
[1743656583412,0.03,120.5,120.48,7.4]
[1743656583618,0.03,120.5,120.47,97.5702]
[1743656585312,0.03,120.5,120.47,81.87]
[1743656585699,0.03,120.5,120.45,88.2729]
[1743656585700,18.88686163,120.5,120.45,88.2729]
[1743656586013,18.85686163,120.49,120.45,81.87]
[1743656586315,18.85686163,120.49,120.44,323.683]
[1743656586518,18.85686163,120.49,120.44,331.9858]
[1743656587305,18.85686163,120.49,120.47,0.063]
[1743656587514,8.3001,120.48,120.47,0.063]
[1743656587713,27.15696163,120.48,120.47,0.063]
[1743656587920,53.15696163,120.48,120.47,0.063]
[1743656588718,65.08995683,120.48,120.47,0.063]
[1743656589016,80.20225683,120.48,120.47,0.063]
[1743656591621,45.07613357,120.45,120.44,0.063]
[1743656591925,63.9329952,120.45,120.44,0.063]
[1743656592920,72.2351952,120.45,120.44,0.063]
[1743656603519,53.37833357,120.45,120.44,0.063]
[1743656603828,72.2351952,120.45,120.44,0.063]
[1743656608235,53.37833357,120.45,120.44,0.063]
[1743656608437,72.2351952,120.45,120.44,0.063]
[1743656609642,53.37833357,120.45,120.44,0.063]
[1743656609831,72.2351952,120.45,120.44,0.063]
[1743656612312,0.03,120.5,120.45,1.6488]
[1743656612529,0.03,120.5,120.46,15.7208]
[1743656612736,0.03,120.5,120.47,6.4027]
[1743656614017,0.063,120.52,120.49,1.5457]
[1743656614331,0.063,120.52,120.5,7.42]
[1743656614832,0.063,120.52,120.51,8.298]
[1743656615516,0.063,120.56,120.51,8.298]
[1743656615517,0.063,120.56,120.51,143.888472]
[1743656615716,0.063,120.56,120.52,7.4]
[1743656616150,26.0,120.55,120.5,0.5]
[1743656616319,26.0,120.55,120.44,0.063]
[1743656616320,0.5,120.48,120.44,0.063]
[1743656616518,0.5,120.47,120.44,0.063]
[1743656616823,0.5,120.46,120.44,0.063]
[1743656617539,0.5,120.45,120.44,0.063]
[1743656618958,26.5,120.45,120.44,0.063]
[1743656619236,26.0,120.45,120.44,0.063]
[1743656619435,0.5,120.45,120.44,0.063]
[1743656620341,0.5,120.46,120.44,0.063]
[1743656620513,0.5,120.45,120.44,0.063]
[1743656621150,0.5,120.46,120.44,0.063]
[1743656621646,0.5,120.45,120.44,0.063]
[1743656622052,0.5,120.46,120.44,0.063]
[1743656622358,0.5,120.45,120.44,0.063]
[1743656622732,0.5,120.46,120.44,0.063]
[1743656626357,0.5,120.45,120.44,0.063]
[1743656627856,38.90491228,120.46,120.44,0.063]
[1743656628154,0.5,120.45,120.44,0.063]
[1743656631855,8.8016,120.46,120.44,0.063]
[1743656632050,0.5,120.45,120.44,0.063]
[1743656633856,39.04767385,120.45,120.44,0.063]
[1743656634046,39.33199699,120.45,120.44,0.063]
[1743656634848,57.98164585,120.45,120.44,0.063]
[1743656637443,38.90551228,120.45,120.44,0.063]
[1743656637753,27.62800196,120.45,120.44,0.063]
[1743656638860,46.70413553,120.45,120.44,0.063]
[1743656639162,54.26413553,120.45,120.44,0.063]
[1743656641758,8.8022,120.45,120.44,0.063]
[1743656641940,27.62800196,120.45,120.44,0.063]
[1743656642338,0.5,120.45,120.44,0.063]
[1743656642747,8.8022,120.45,120.44,0.063]
[1743656643751,27.62800196,120.45,120.44,0.063]
[1743656644766,0.5,120.45,120.44,0.063]
[1743656645068,0.03,120.47,120.44,7.603]
[1743656645439,0.03,120.47,120.44,89.473]
[1743656646667,0.5,120.52,120.46,6.4068]
[1743656646844,0.5,120.53,120.47,8.3008]
[1743656647044,0.5,120.53,120.48,9.1653]
[1743656647257,0.5,120.52,120.48,9.1653]
[1743656647949,0.5,120.53,120.48,9.1653]
[1743656648189,0.5,120.52,120.48,9.1653]
[1743656648374,0.5,120.51,120.48,9.1653]
[1743656649165,0.5,120.5,120.48,9.1653]
[1743656651686,8.799,120.5,120.46,6.4068]
[1743656651974,0.21522947,120.49,120.46,6.4068]
[1743656652673,27.12480196,120.5,120.46,6.4068]
[1743656652898,0.21522947,120.49,120.46,6.4068]
[1743656654357,8.51422947,120.5,120.46,6.4068]
[1743656654650,0.21522947,120.49,120.46,6.4068]
[1743656654874,8.51422947,120.5,120.46,6.4068]
[1743656655080,0.21522947,120.49,120.46,6.4068]
[1743656655480,8.51422947,120.5,120.46,6.4068]
[1743656655697,0.21522947,120.49,120.46,6.4068]
[1743656655874,0.21522947,120.5,120.46,14.7082]
[1743656656078,27.33933143,120.51,120.46,14.7082]
[1743656656385,20.7421,120.53,120.46,14.7082]
[1743656656386,26.0,120.52,120.46,14.7082]
[1743656656758,0.21522947,120.5,120.46,96.5782]
[1743656657184,0.24522947,120.5,120.46,96.5782]
[1743656657384,0.03,120.5,120.46,96.5782]
[1743656658875,0.24522947,120.5,120.46,96.5782]
[1743656660782,0.03,120.5,120.46,96.5782]
[1743656660967,0.24522947,120.5,120.46,88.2768]
[1743656661477,0.03,120.5,120.46,96.5782]
[1743656661669,0.24522947,120.5,120.46,96.5782]
[1743656662271,27.37003143,120.5,120.46,88.2768]
[1743656662457,27.37003143,120.5,120.46,96.5783]
[1743656662661,19.04103143,120.47,120.44,0.063]
[1743656662973,19.04103143,120.46,120.44,0.063]
[1743656663590,27.34253143,120.46,120.44,0.063]
[1743656663766,19.04103143,120.46,120.44,0.063]
[1743656664268,0.21522947,120.46,120.44,0.063]
[1743656664671,26.0,120.47,120.44,0.063]
[1743656664881,0.21522947,120.46,120.44,0.063]
[1743656665277,26.0,120.47,120.44,0.063]
[1743656665480,0.21522947,120.46,120.44,0.063]
[1743656666091,0.21522947,120.45,120.44,0.063]
[1743656666581,19.04103143,120.45,120.44,0.063]
[1743656667467,0.21522947,120.45,120.44,0.063]
[1743656667961,19.04103143,120.46,120.44,0.063]
[1743656668169,0.21522947,120.45,120.44,0.063]
[1743656669162,19.04103143,120.45,120.44,0.063]
[1743656669685,37.83284186,120.45,120.44,0.063]
[1743656669871,46.419365,120.45,120.44,0.063]
[1743656676282,19.1101251,120.43,120.42,0.03]
[1743656676999,56.94296696,120.43,120.42,0.03]
[1743656677574,26.0,120.39,120.37,0.03]
[1743656677802,18.82580196,120.38,120.37,0.03]
[1743656678292,19.04103143,120.38,120.37,0.03]
[1743656679401,18.82580196,120.38,120.37,0.03]
[1743656679694,19.04103143,120.38,120.37,0.03]
[1743656680010,0.21522947,120.38,120.37,0.03]
[1743656680498,26.21522947,120.39,120.37,0.03]
[1743656680686,0.21522947,120.41,120.37,0.03]
[1743656680889,0.21522947,120.4,120.37,0.03]
[1743656681193,19.04103143,120.41,120.37,0.03]
[1743656681403,0.21522947,120.4,120.37,0.03]
[1743656682517,0.21522947,120.41,120.37,0.03]
[1743656682687,19.04103143,120.41,120.37,0.03]
[1743656683009,0.21522947,120.4,120.37,0.03]
[1743656683416,19.04103143,120.4,120.37,0.03]
[1743656683597,18.79181043,120.42,120.37,0.03]
[1743656683598,19.04103143,120.39,120.37,0.03]
[1743656685418,18.82580196,120.39,120.37,0.03]
[1743656685610,19.04103143,120.39,120.37,0.03]
[1743656686712,45.04103143,120.39,120.37,0.03]
[1743656686894,0.21522947,120.38,120.37,0.03]
[1743656687608,19.04103143,120.38,120.37,0.03]
[1743656688810,0.21522947,120.38,120.37,0.03]
[1743656691292,45.04103143,120.39,120.37,0.03]
[1743656691493,0.21522947,120.38,120.37,0.03]
[1743656693240,19.04103143,120.38,120.37,0.03]
[1743656693701,0.21522947,120.38,120.37,0.03]
[1743656693900,19.04103143,120.38,120.37,0.03]
[1743656695796,27.34803143,120.38,120.37,0.03]
[1743656696128,46.424165,120.38,120.37,0.03]
[1743656697709,39.66505741,120.38,120.37,0.03]
[1743656699731,46.45010735,120.38,120.37,0.03]
[1743656700127,27.59836304,120.38,120.37,0.03]
[1743656700309,46.45010735,120.38,120.37,0.03]
[1743656704027,65.30185166,120.38,120.37,0.03]
[1743656705340,46.45010735,120.38,120.37,0.03]
[1743656705536,37.85878421,120.38,120.37,0.03]
[1743656705917,38.14310735,120.38,120.37,0.03]
[1743656706843,46.45010735,120.38,120.37,0.03]
[1743656707039,0.21522947,120.39,120.37,0.03]
[1743656707416,37.85878421,120.4,120.37,0.03]
[1743656707745,0.21522947,120.39,120.37,0.03]
[1743656708748,19.06697378,120.38,120.37,0.03]
[1743656710432,46.16578421,120.38,120.37,0.03]
[1743656710615,37.85878421,120.38,120.37,0.03]
[1743656711650,46.16578421,120.38,120.37,0.03]
[1743656712253,46.45010735,120.38,120.37,0.03]
[1743656714430,72.15645746,120.38,120.37,0.03]
[1743656715351,53.30471315,120.38,120.37,0.03]
[1743656716359,26.21522947,120.35,120.34,0.063]
[1743656716537,45.35129692,120.35,120.34,0.063]
[1743656716853,63.85878421,120.35,120.34,0.063]
[1743656717025,19.06697378,120.35,120.34,0.063]
[1743656717227,0.21522947,120.35,120.34,0.063]
[1743656717726,0.21522947,120.36,120.34,0.063]
[1743656717936,19.06697378,120.37,120.34,0.063]
[1743656718160,0.21522947,120.36,120.34,0.063]
[1743656719230,19.06697378,120.36,120.34,0.063]
[1743656720733,0.21522947,120.37,120.34,0.063]
[1743656720935,19.06697378,120.39,120.35,7.8904]
[1743656721159,0.21522947,120.39,120.35,7.8904]
[1743656722052,0.21522947,120.39,120.35,15.3104]
[1743656722356,19.06697378,120.4,120.35,15.3104]
[1743656722661,0.21522947,120.4,120.36,8.3084]
[1743656722863,0.03,120.42,120.36,8.3084]
[1743656723069,0.03,120.42,120.36,110.9494]
[1743656723362,0.21522947,120.45,120.4,19.07613357]
[1743656723552,0.21522947,120.45,120.41,7.42]
[1743656724863,0.21522947,120.45,120.42,8.3042]
[1743656725542,19.06697378,120.48,120.42,8.3042]
[1743656725934,0.21522947,120.45,120.42,8.3042]
[1743656726164,19.0370399,120.49,120.43,7.9076]
[1743656726465,0.21522947,120.46,120.43,7.9076]
[1743656726661,37.88878421,120.49,120.43,7.9076]
[1743656726867,19.09697378,120.49,120.44,8.3028]
[1743656727667,0.21522947,120.46,120.44,8.3028]
[1743656728051,18.85174431,120.48,120.44,8.3028]
[1743656728365,0.03,120.49,120.44,110.93]
[1743656728567,0.21522947,120.48,120.45,7.42]
[1743656728868,26.03,120.49,120.46,8.3015]
[1743656729167,0.21522947,120.48,120.46,8.3015]
[1743656730562,0.03,120.49,120.46,8.3015]
[1743656731373,0.21522947,120.48,120.45,15.722]
[1743656732146,0.24522947,120.49,120.45,15.722]
[1743656732367,0.21522947,120.48,120.45,15.722]
[1743656733066,19.06697378,120.48,120.45,7.42]
[1743656733260,19.06697378,120.47,120.45,7.42]
[1743656733444,0.21522947,120.47,120.45,7.42]
[1743656733844,0.21522947,120.48,120.45,15.7221]
[1743656735163,19.06697378,120.48,120.45,7.42]
[1743656735354,19.06697378,120.46,120.43,7.9076]
[1743656735967,19.06697378,120.46,120.43,16.2109]
[1743656740672,0.21522947,120.46,120.43,16.2109]
[1743656740849,19.06697378,120.46,120.43,7.9076]
[1743656741047,0.21522947,120.45,120.43,7.9076]
[1743656742167,0.21522947,120.47,120.43,16.2111]
[1743656744754,19.09697378,120.49,120.43,16.2111]
[1743656744953,0.21522947,120.47,120.43,16.2111]
[1743656746977,18.85174431,120.48,120.43,16.2111]
[1743656747175,0.21522947,120.47,120.43,16.2111]
[1743656747474,0.21522947,120.48,120.43,16.2111]
[1743656747679,0.21522947,120.47,120.43,16.2111]
[1743656747860,0.21522947,120.48,120.43,16.2111]
[1743656748260,0.21522947,120.47,120.43,16.2111]
[1743656748454,0.21522947,120.48,120.43,16.2111]
[1743656748670,0.21522947,120.47,120.43,16.2111]
[1743656748879,0.21522947,120.48,120.43,16.2111]
[1743656750463,0.21522947,120.47,120.43,98.0811]
[1743656750665,0.21522947,120.48,120.43,98.0811]
[1743656751289,0.03,120.49,120.43,118.84]
[1743656751465,0.03,120.49,120.44,7.4]
[1743656752390,0.21522947,120.48,120.44,7.4]
[1743656753594,0.21522947,120.48,120.45,8.3022]
[1743656756193,0.21522947,120.48,120.44,15.7026]
[1743656757295,12.06824216,120.49,120.44,15.7026]
[1743656757465,0.21522947,120.48,120.44,15.7026]
[1743656759993,8.51582947,120.48,120.44,7.4]
[1743656760174,0.21522947,120.47,120.44,15.7026]
[1743656760372,20.58297163,120.49,120.44,15.7026]
[1743656760788,0.21522947,120.47,120.44,15.7026]
[1743656761299,12.28347163,120.49,120.44,15.7026]
[1743656761505,0.03,120.49,120.44,15.7026]
[1743656761799,0.21522947,120.48,120.44,15.7026]
[1743656762177,12.28347163,120.49,120.44,15.7026]
[1743656762499,0.24522947,120.49,120.44,15.7026]
[1743656762797,0.21522947,120.48,120.44,15.7026]
[1743656763095,0.03,120.49,120.44,15.7026]
[1743656763303,0.03,120.49,120.44,36.4598]
[1743656763685,0.24522947,120.49,120.44,36.4598]
[1743656764093,0.03,120.47,120.44,36.4598]
[1743656765780,0.03,120.47,120.46,6.6127]
[1743656766098,0.03,120.47,120.46,88.4827]
[1743656766989,0.03,120.47,120.46,109.18883357]
[1743656767180,0.03,120.47,120.46,109.4736041]
[1743656767799,0.03,120.47,120.46,117.7751041]
[1743656767995,0.03,120.47,120.46,117.49033357]
[1743656768192,0.03,120.47,120.46,117.7751041]
[1743656768596,0.03,120.49,120.47,19.07613357]
[1743656768898,0.03,120.49,120.48,7.4]
[1743656770506,0.03,120.49,120.48,15.7001]
[1743656771002,0.03,120.49,120.48,97.5701]
[1743656771304,0.03,120.49,120.48,116.64623357]
[1743656771493,0.03,120.5,120.49,6.3886]
[1743656771702,0.03,120.5,120.49,88.2586]
[1743656772087,0.03,120.5,120.49,107.33473357]
[1743656772899,0.03,120.5,120.49,115.63413357]
[1743656773907,0.03,120.5,120.49,96.558]
[1743656776226,0.03,120.5,120.49,117.26833357]
[1743656776718,0.03,120.5,120.49,123.95941816]
[1743656778927,0.03,120.55,120.5,19.07613357]
[1743656779127,0.03,120.55,120.51,0.28477053]
[1743656779313,0.03,120.55,120.53,19.07613357]
[1743656779621,0.03,120.55,120.53,100.94613357]
[1743656780020,0.03,120.55,120.54,8.296]
[1743656780226,0.03,120.55,120.54,16.2106]
[1743656780520,0.03,120.55,120.54,117.15673357]
[1743656781825,0.03,120.55,120.54,90.166]
[1743656783899,0.03,120.55,120.54,109.24213357]
[1743656784307,0.063,120.56,120.55,108.61603357]
[1743656784623,0.063,120.56,120.55,116.01603357]
[1743656785103,0.063,120.56,120.55,96.9399]
[1743656785302,0.063,120.56,120.55,89.27]